bitfinex/quotes_ETHUSD_20230118
["timestamp","ask_amount","ask_price","bid_price","bid_amount"]
[1674033711016,8.32812314,1581.9,1581.6,9.0701629]
[1674033711490,14.64969314,1581.9,1581.6,9.0701629]
[1674033711677,1.437,1581.8,1581.6,9.0701629]
[1674033712003,9.36759931,1581.8,1581.6,9.0701629]
[1674033712212,3.11166931,1581.8,1581.6,9.0701629]
[1674033712425,3.04566931,1581.8,1581.6,9.0701629]
[1674033714281,1.437,1581.8,1581.6,15.3928629]
[1674033715669,1.437,1581.8,1581.6,21.7155729]
[1674033716791,1.94055314,1581.9,1581.6,21.7155729]
[1674033717013,1.94055314,1581.9,1581.6,28.0382829]
[1674033717215,1.94055314,1581.9,1581.6,28.04277856]
[1674033717467,1.94055314,1581.9,1581.6,31.47936342]
[1674033718058,0.50855314,1581.9,1581.8,6.32191]
[1674033718273,0.50855314,1581.9,1581.8,12.70982]
[1674033722376,0.50855314,1581.9,1581.8,25.37835407]
[1674033722553,0.50855314,1581.9,1581.8,42.81194827]
[1674033722762,0.50855314,1581.9,1581.8,39.31194827]
[1674033722976,0.50855314,1581.9,1581.8,42.81194827]
[1674033723285,1.2995975,1582.4,1581.8,42.81194827]
[1674033723446,1.2995975,1582.4,1582.0,18.96273]
[1674033723651,1.2995975,1582.4,1582.2,6.32031]
[1674033723897,1.2995975,1582.4,1582.2,15.82324407]
[1674033727915,1.2995975,1582.4,1582.2,24.82324407]
[1674033728235,1.2995975,1582.4,1582.3,3.11662407]
[1674033728409,1.2995975,1582.4,1582.3,22.30635407]
[1674033728598,1.2995975,1582.4,1582.3,22.37235407]
[1674033728808,1.2995975,1582.4,1582.3,6.38591]
[1674033729079,1.2995975,1582.4,1582.3,0.066]
[1674033729292,1.2995975,1582.4,1582.2,15.38629]
[1674033729440,1.2995975,1582.4,1582.2,18.50291407]
[1674033732933,1.2995975,1582.4,1582.2,27.50291407]
[1674033734607,1.2995975,1582.4,1582.2,33.82322407]
[1674033734820,1.2995975,1582.4,1582.2,37.83809372]
[1674033735027,1.2995975,1582.4,1582.2,33.82322407]
[1674033736417,1.2995975,1582.4,1582.3,3.11662407]
[1674033736629,1.2995975,1582.4,1582.3,9.43653407]
[1674033736871,1.2995975,1582.4,1582.3,9.50253407]
[1674033737024,1.2995975,1582.4,1582.3,6.38591]
[1674033737239,1.2995975,1582.4,1582.3,0.066]
[1674033737448,1.2995975,1582.4,1582.2,24.38608]
[1674033737659,9.84963876,1582.4,1582.2,18.066]
[1674033738025,1.44,1582.3,1582.2,18.066]
[1674033739974,2.8055975,1582.4,1582.2,18.066]
[1674033740185,3.40108901,1582.4,1582.2,18.066]
[1674033740613,2.7395975,1582.4,1582.2,18.066]
[1674033743136,9.72063901,1582.4,1582.2,18.066]
[1674033743474,9.78663901,1582.4,1582.2,18.066]
[1674033743912,3.46708901,1582.4,1582.2,18.066]
[1674033744080,2.7395975,1582.4,1582.2,18.066]
[1674033744920,3.40108901,1582.4,1582.2,18.066]
[1674033745147,1.96108901,1582.4,1582.2,18.066]
[1674033745361,1.2995975,1582.4,1582.2,30.70411959]
[1674033749767,1.96108901,1582.4,1582.2,30.70411959]
[1674033749968,1.96108901,1582.4,1582.2,18.06352959]
[1674033750174,3.40108901,1582.4,1582.2,18.06352959]
[1674033750388,0.3401089,1582.3,1582.2,18.06352959]
[1674033750715,9.78662901,1582.4,1582.2,18.06352959]
[1674033750942,10.78030745,1582.4,1582.2,18.06352959]
[1674033752182,2.86764976,1582.3,1582.2,18.06352959]
[1674033752445,22.15956669,1582.3,1582.2,18.06352959]
[1674033752590,22.22556669,1582.3,1582.2,18.06352959]
[1674033752794,23.55047127,1582.3,1582.2,18.06352959]
[1674033753048,22.55679283,1582.3,1582.2,18.06352959]
[1674033754935,21.23188825,1582.3,1582.2,16.30694603]
[1674033755287,24.21188093,1582.3,1582.2,16.30694603]
[1674033757071,22.88801898,1582.3,1582.2,16.30694603]
[1674033757457,17.89251054,1582.3,1582.2,16.30694603]
[1674033757664,16.23637981,1582.3,1582.2,16.30694603]
[1674033758775,2.16855981,1582.3,1582.2,16.30694603]
[1674033758984,1.44028708,1582.3,1582.2,16.30694603]
[1674033759612,2.43348033,1582.3,1582.2,16.31110893]
[1674033760349,1.44028708,1582.3,1582.2,16.31110893]
[1674033762080,2.43348033,1582.3,1582.2,16.31110893]
[1674033762517,0.99319325,1582.3,1582.2,16.31110893]
[1674033762760,1.39093629,1582.3,1582.2,16.31110893]
[1674033763562,1.39093629,1582.3,1582.2,22.63141893]
[1674033764706,3.02091958,1582.4,1582.2,22.63141893]
[1674033764916,1.39096674,1582.3,1582.2,22.63141893]
[1674033765400,3.02091958,1582.4,1582.2,22.63141893]
[1674033765709,1.39096679,1582.3,1582.2,22.63141893]
[1674033765870,3.02091958,1582.4,1582.2,26.15866382]
[1674033766082,2.95491958,1582.4,1582.2,26.15866382]
[1674033767228,2.95491958,1582.4,1582.2,22.63141893]
[1674033767708,1.96172633,1582.4,1582.2,38.388663]
[1674033767859,1.2995975,1582.4,1582.2,38.388663]
[1674033768073,1.96172633,1582.4,1582.2,38.388663]
[1674033769074,1.2995975,1582.4,1582.3,22.07635407]
[1674033769286,1.2995975,1582.4,1582.3,22.37235407]
[1674033769446,1.2995975,1582.4,1582.3,9.50253407]
[1674033769646,2.66191282,1582.4,1582.3,9.50253407]
[1674033770903,1.2995975,1582.4,1582.3,15.82244407]
[1674033771591,2.65816074,1582.4,1582.3,15.82244407]
[1674033771960,2.65816074,1582.4,1582.3,6.38591]
[1674033772486,2.65816074,1582.4,1582.3,0.066]
[1674033772691,2.65816074,1582.4,1582.2,22.63138893]
[1674033772937,1.96187839,1582.4,1582.2,25.748013]
[1674033773846,2.95507164,1582.4,1582.2,25.748013]
[1674033775428,3.38961896,1582.4,1582.2,25.748013]
[1674033777270,1.358564,1582.3,1582.2,25.748013]
[1674033777481,1.358564,1582.3,1582.2,16.31110893]
[1674033777696,1.35861124,1582.3,1582.2,16.31110893]
[1674033777853,2.35180449,1582.3,1582.2,16.31110893]
[1674033778525,1.35861124,1582.3,1582.2,16.31110893]
[1674033780443,2.35180832,1582.3,1582.2,16.31322646]
[1674033780777,2.35180423,1582.3,1582.2,16.31322646]
[1674033785021,2.35180423,1582.3,1582.2,16.31070364]
[1674033785410,1.68947636,1582.3,1582.2,16.31070364]
[1674033786196,2.3518121,1582.3,1582.2,16.31070364]
[1674033786710,1.35861885,1582.3,1582.2,16.31070364]
[1674033787090,3.02112649,1582.4,1582.2,16.31070364]
[1674033787305,2.95512649,1582.4,1582.2,16.31070364]
[1674033788284,0.66233574,1582.3,1582.2,16.31070364]
[1674033788676,1.35869598,1582.3,1582.2,16.31070364]
[1674033793338,1.36069598,1582.3,1582.2,16.30870364]
[1674033793557,1.35869598,1582.3,1582.2,16.31070364]
[1674033793975,1.68955349,1582.3,1582.2,16.31070364]
[1674033794194,2.75947974,1582.3,1582.2,16.31070364]
[1674033794988,2.42877142,1582.3,1582.2,16.31070364]
[1674033800038,2.75947974,1582.3,1582.2,16.31070364]
[1674033803556,1.68955349,1582.3,1582.2,16.31070364]
[1674033804359,1.68955349,1582.3,1582.2,16.61634906]
[1674033808807,1.35939383,1582.3,1582.2,16.61634906]
[1674033809064,2.35258708,1582.3,1582.2,16.61634906]
[1674033809563,1.35939383,1582.3,1582.2,16.61634906]
[1674033810506,2.35258708,1582.3,1582.2,16.61634906]
[1674033810721,1.68955349,1582.3,1582.2,16.61634906]
[1674033814047,8.00946349,1582.3,1582.2,16.61634906]
[1674033814272,8.4066718,1582.3,1582.2,16.6134374]
[1674033815884,9.40163165,1582.3,1582.2,16.6134374]
[1674033816348,8.4066718,1582.3,1582.2,16.6134374]
[1674033817234,10.06280253,1582.3,1582.2,16.6134374]
[1674033819296,22.80822097,1582.3,1582.2,16.6134374]
[1674033820589,21.15209024,1582.3,1582.2,16.6134374]
[1674033820775,23.14081063,1582.3,1582.2,14.85682879]
[1674033822164,21.15209024,1582.3,1582.2,14.85682879]
[1674033823604,22.8092783,1582.3,1582.2,14.85682879]
[1674033824030,22.8092783,1582.3,1582.2,14.85482879]
[1674033824259,22.8092783,1582.3,1582.2,14.85682879]
[1674033826008,25.92590237,1582.3,1582.2,14.85682879]
[1674033826218,25.26362173,1582.3,1582.2,14.85682879]
[1674033826431,24.26871431,1582.3,1582.2,14.85682879]
[1674033828319,25.92473601,1582.3,1582.2,14.85682879]
[1674033828775,26.91964343,1582.3,1582.2,14.85682879]
[1674033828992,25.92473601,1582.3,1582.2,14.85682879]
[1674033829841,25.26362173,1582.3,1582.2,14.85482879]
[1674033830000,24.26871431,1582.3,1582.2,14.85682879]
[1674033830668,26.2574347,1582.3,1582.2,14.85682879]
[1674033830948,28.69234212,1582.3,1582.2,12.52006244]
[1674033831205,31.69234212,1582.3,1582.2,12.52006244]
[1674033833831,22.14699766,1582.3,1582.2,12.52006244]
[1674033834026,21.15209024,1582.3,1582.2,12.52006244]
[1674033834215,22.80689497,1582.3,1582.2,12.52006244]
[1674033834763,16.15592968,1582.3,1582.2,12.52006244]
[1674033835523,22.47583968,1582.3,1582.2,12.52006244]
[1674033835688,24.13064441,1582.3,1582.2,12.52006244]
[1674033836096,16.15592968,1582.3,1582.2,12.52006244]
[1674033836553,17.14875907,1582.3,1582.2,12.52006244]
[1674033837369,15.82500963,1582.3,1582.2,12.52006244]
[1674033837574,17.14875907,1582.3,1582.2,12.52006244]
[1674033837801,14.39500963,1582.3,1582.2,12.52006244]
[1674033838728,8.07509963,1582.3,1582.2,12.52006244]
[1674033839526,9.39884907,1582.3,1582.2,12.52006244]
[1674033840048,8.40601968,1582.3,1582.2,12.52006244]
[1674033842786,9.39894439,1582.3,1582.2,12.52006244]
[1674033843106,8.40601968,1582.3,1582.2,12.52006244]
[1674033843618,14.72592968,1582.3,1582.2,12.52006244]
[1674033843775,17.00609907,1582.3,1582.2,12.52006244]
[1674033843983,14.72592968,1582.3,1582.2,12.52006244]
[1674033847034,21.37689497,1582.3,1582.2,10.76346315]
[1674033848084,2.41716497,1582.3,1582.2,10.76346315]
[1674033848463,21.31089497,1582.3,1582.2,10.76346315]
[1674033848643,21.37689497,1582.3,1582.2,10.76346315]
[1674033849351,24.27871431,1582.3,1582.2,10.76346315]
[1674033849713,26.2674347,1582.3,1582.2,10.76346315]
[1674033849884,26.2674347,1582.3,1582.2,8.421126]
[1674033850096,29.2674347,1582.3,1582.2,8.421126]
[1674033850314,30.26234212,1582.3,1582.2,8.421126]
[1674033852008,28.27362173,1582.3,1581.8,9.0]
[1674033852224,32.00923732,1582.3,1582.2,0.014]
[1674033852411,37.04826792,1582.3,1582.2,0.014]
[1674033854122,37.8847226,1582.3,1582.2,0.014]
[1674033854758,37.24798087,1582.3,1582.2,0.014]
[1674033856542,37.01798087,1582.3,1582.2,0.014]
[1674033856702,34.70038097,1582.3,1582.2,0.014]
[1674033857374,34.69695647,1582.3,1582.2,0.014]
[1674033859751,34.69695647,1582.3,1582.2,0.00077967]
[1674033860808,37.01455637,1582.3,1582.2,0.00077967]
[1674033861858,34.69695647,1582.3,1582.2,0.00077967]
[1674033862085,0.00122033,1581.9,1581.8,9.064]
[1674033862277,19.9592552,1581.9,1581.8,9.066]
[1674033862638,0.06722033,1581.9,1581.8,10.79392]
[1674033862860,0.66351872,1581.9,1581.8,10.79392]
[1674033863024,1.11924523,1581.9,1581.8,10.79392]
[1674033863240,0.66351872,1581.9,1581.8,10.79392]
[1674033863701,0.00122033,1581.9,1581.8,10.79392]
[1674033864062,0.00122033,1581.9,1581.8,12.23092]
[1674033869680,0.00122033,1581.9,1581.8,15.34754407]
[1674033869889,0.00122033,1581.9,1581.8,24.66945407]
[1674033870926,0.00122033,1581.9,1581.8,30.99136407]
[1674033871422,0.00122033,1581.9,1581.8,24.66945407]
[1674033873206,0.00122033,1581.9,1581.8,15.66945407]
[1674033873541,0.00122033,1581.9,1581.8,21.99136407]
[1674033874147,0.00122033,1581.9,1581.8,15.66945407]
[1674033876687,0.00122033,1581.9,1581.8,9.34754407]
[1674033877679,0.00122033,1581.9,1581.8,4.503]
[1674033877828,0.00122033,1581.9,1581.8,1.437]
[1674033880144,0.00122033,1581.9,1581.8,2.437]
[1674033880350,0.00122033,1581.9,1581.8,1.437]
[1674033880565,0.00122033,1581.9,1581.8,2.437]
[1674033880956,0.00122033,1581.9,1581.8,4.140839]
[1674033881096,0.00122033,1581.9,1581.8,22.90128307]
[1674033881291,0.00122033,1581.9,1581.8,22.96728307]
[1674033882773,0.00122033,1581.9,1581.8,21.96728307]
[1674033883154,0.00122033,1581.9,1581.8,15.64537307]
[1674033883744,0.00122033,1581.9,1581.8,9.32346307]
[1674033884598,6.38672,1582.1,1581.9,0.00169255]
[1674033884819,6.38672,1582.1,1581.9,1.44169255]
[1674033885034,12.70783,1582.1,1581.9,1.44169255]
[1674033885340,6.32118,1582.0,1581.9,1.44169255]
[1674033885557,6.38718,1582.0,1581.9,1.44169255]
[1674033886237,12.70836,1582.0,1581.9,1.44169255]
[1674033886612,6.38718,1582.0,1581.9,1.44169255]
[1674033887395,7.72419984,1582.0,1581.9,1.44169255]
[1674033888235,7.72419984,1582.0,1581.9,0.00169255]
[1674033888442,15.16327073,1582.0,1581.9,0.00169255]
[1674033888669,15.1632585,1582.0,1581.9,0.00169255]
[1674033888899,14.04530984,1582.0,1581.9,0.00169255]
[1674033889103,7.72412984,1582.0,1581.9,0.00169255]
[1674033892065,14.04523984,1582.0,1581.9,0.00169255]
[1674033892245,21.48422155,1582.0,1581.9,0.00169255]
[1674033892466,15.16311155,1582.0,1581.9,0.00169255]
[1674033893080,15.16315986,1582.0,1581.9,0.00169255]
[1674033894602,21.48426986,1582.0,1581.9,0.00169255]
[1674033894915,15.16315986,1582.0,1581.9,0.00169255]
[1674033895287,16.15666473,1582.0,1581.9,0.00169255]
[1674033896184,15.16315986,1582.0,1581.9,0.00169255]
[1674033897226,13.82614002,1582.0,1581.9,0.00169255]
[1674033897595,13.82614002,1582.0,1581.7,4.01785831]
[1674033897596,0.066,1582.0,1581.7,8.94]
[1674033897802,0.66229839,1582.1,1581.8,6.32173]
[1674033898060,0.66229839,1582.1,1581.8,9.31316541]
[1674033898061,1.1178943,1582.1,1581.8,9.31316541]
[1674033898658,1.1178943,1582.1,1581.8,2.99143541]
[1674033898995,8.43218917,1582.1,1581.7,21.76363407]
[1674033899210,0.66229839,1582.0,1581.7,21.76363407]
[1674033899422,1.11800503,1582.0,1581.7,21.76363407]
[1674033900897,1.11800503,1582.0,1581.8,3.11662407]
[1674033901108,8.57559839,1582.2,1581.9,7.32151]
[1674033901331,9.56910326,1582.2,1581.9,10.148769]
[1674033901542,15.88942326,1582.2,1581.9,1.51910159]
[1674033901732,1.11813575,1582.1,1581.8,1.506]
[1674033901905,1.11813575,1582.1,1581.8,7.7619]
[1674033902114,1.11813575,1582.1,1581.8,7.8279]
[1674033902324,1.11813575,1582.1,1581.8,11.04775449]
[1674033902657,1.11813575,1582.1,1581.8,20.48628856]
[1674033902864,1.11813575,1582.1,1581.8,13.92637856]
[1674033905902,8.57559839,1582.2,1581.9,1.0]
[1674033906114,0.72829839,1582.2,1582.0,1.202]
[1674033906363,0.66229839,1582.2,1582.0,1.73386241]
[1674033907116,1.11823886,1582.2,1582.0,1.73386241]
[1674033907263,1.11823886,1582.2,1582.0,1.202]
[1674033909816,2.11174373,1582.2,1582.0,1.202]
[1674033910028,8.43205373,1582.2,1581.9,0.066]
[1674033910262,8.43205373,1582.2,1581.8,10.76004476]
[1674033910263,0.66229839,1582.1,1581.8,10.82604476]
[1674033910603,1.11816901,1582.1,1581.9,0.93357351]
[1674033910826,1.11816901,1582.1,1581.8,13.94266883]
[1674033911510,0.66229839,1582.1,1581.8,13.94266883]
[1674033911928,14.36263326,1582.2,1581.8,13.94266883]
[1674033912125,7.43892504,1582.1,1581.8,1.28429027]
[1674033912369,13.36983839,1582.1,1581.8,1.21829027]
[1674033916285,14.36334326,1582.1,1581.8,1.21829027]
[1674033917020,6.32136,1582.0,1581.8,1.21829027]
[1674033917332,6.38736,1582.0,1581.8,1.21829027]
[1674033919021,7.04965839,1582.0,1581.8,1.202]
[1674033919378,7.04965839,1582.0,1581.7,12.0908]
[1674033919700,13.37101839,1582.0,1581.7,12.0908]
[1674033922123,14.36452326,1582.0,1581.7,12.0908]
[1674033922319,1.43645233,1581.9,1581.7,12.0908]
[1674033922585,14.36452326,1582.0,1581.7,12.0908]
[1674033923058,14.36452326,1582.0,1581.7,3.066]
[1674033923272,1.65580326,1581.8,1581.6,0.06440349]
[1674033923537,6.32231,1581.7,1581.4,18.71536673]
[1674033923724,6.38831,1581.7,1581.4,18.71536673]
[1674033925472,19.03293,1581.7,1581.4,8.16286673]
[1674033927151,0.066,1581.7,1581.5,0.00232387]
[1674033927362,14.76954,1581.8,1581.5,0.00232387]
[1674033928449,21.09148,1581.8,1581.4,9.36486673]
[1674033931426,28.07571839,1581.8,1581.4,9.36486673]
[1674033932740,27.51565227,1581.8,1581.4,9.36486673]
[1674033932950,27.51565227,1581.8,1581.4,8.16286673]
[1674033933207,28.50915714,1581.8,1581.4,8.16286673]
[1674033933416,29.26484793,1581.8,1581.4,8.16286673]
[1674033933793,29.26484793,1581.8,1581.4,0.09366673]
[1674033934022,29.26484793,1581.8,1581.4,0.02926324]
[1674033934228,2.1159161,1581.7,1581.4,0.02926324]
[1674033934441,18.96813,1581.6,1581.4,0.02926324]
[1674033934626,19.03413,1581.6,1581.4,0.02926324]
[1674033934836,12.71142,1581.6,1581.4,0.02926324]
[1674033936256,19.03413,1581.6,1581.4,0.02926324]
[1674033936495,12.71142,1581.6,1581.4,0.02926324]
[1674033936835,6.38871,1581.6,1581.4,0.02926324]
[1674033939214,12.71142,1581.6,1581.4,0.02926324]
[1674033939580,19.03413,1581.6,1581.4,0.02926324]
[1674033940229,20.02763487,1581.6,1581.4,0.02926324]
[1674033940418,19.69642839,1581.6,1581.4,0.02926324]
[1674033941100,19.03413,1581.6,1581.4,0.02926324]
[1674033941323,19.96933,1581.5,1581.4,0.02926324]
[1674033941475,19.03533,1581.5,1581.4,0.02926324]
[1674033942533,19.03533,1581.5,1581.4,0.44295475]
[1674033947706,25.03980489,1581.5,1581.4,0.44295475]
[1674033947916,25.03980489,1581.5,1581.4,0.03533164]
[1674033948133,28.03980489,1581.5,1581.4,0.03533164]
[1674033948321,28.79417419,1581.5,1581.4,0.03533164]
[1674033948851,29.45492626,1581.5,1581.4,0.03533164]
[1674033949266,28.79417419,1581.5,1581.4,0.03533164]
[1674033950213,28.79172405,1581.5,1581.4,0.03533164]
[1674033950799,29.45232483,1581.5,1581.4,0.03533164]
[1674033950954,29.45232449,1581.5,1581.4,0.03533164]
[1674033951527,28.79172405,1581.5,1581.4,0.03533164]
[1674033951845,29.02172405,1581.5,1581.4,0.03533164]
[1674033954001,29.68221984,1581.5,1581.4,0.03533164]
[1674033954210,28.68871129,1581.5,1581.4,0.03533164]
[1674033954424,28.45871129,1581.5,1581.4,0.03533164]
[1674033954784,28.44945873,1581.5,1581.4,0.03533164]
[1674033955152,27.70434199,1581.5,1581.4,0.03533164]
[1674033956198,28.44953334,1581.5,1581.4,0.03533164]
[1674033956409,28.44951793,1581.5,1581.4,0.03533164]
[1674033956633,28.44966087,1581.5,1581.4,0.03533164]
[1674033958210,29.44316574,1581.5,1581.4,0.03533164]
[1674033958412,28.44966087,1581.5,1581.4,0.03533164]
[1674033958627,29.44316574,1581.5,1581.4,0.03533164]
[1674033959249,25.44966087,1581.5,1581.4,0.03533164]
[1674033959465,19.03287986,1581.5,1581.4,0.03533164]
[1674033962665,0.066,1581.5,1581.4,2.57533164]
[1674033962825,13.30553211,1581.7,1581.4,2.57533164]
[1674033962826,6.38851,1581.7,1581.4,2.57533164]
[1674033967891,12.711,1581.7,1581.4,2.57533164]
[1674033969241,6.38849,1581.7,1581.4,2.57533164]
[1674033969451,6.38849,1581.7,1581.5,0.25753316]
[1674033969717,6.38849,1581.7,1581.4,1.27733164]
[1674033972679,7.04898211,1581.7,1581.4,1.27733164]
[1674033973551,7.04898211,1581.7,1581.4,0.03533164]
[1674033973763,19.69378211,1581.7,1581.4,0.03533164]
[1674033977489,20.68728698,1581.7,1581.4,0.03533164]
[1674033977703,20.68728698,1581.7,1581.4,0.03162523]
[1674033978541,0.066,1581.7,1581.5,4.55362407]
[1674033978857,0.66049211,1581.9,1581.6,12.64542]
[1674033979071,8.04131698,1582.0,1581.6,12.70982349]
[1674033979233,8.04131698,1582.0,1581.6,14.4297279]
[1674033980008,1.10866093,1581.9,1581.6,14.4297279]
[1674033980639,0.66049211,1581.9,1581.6,14.4297279]
[1674033980859,1.10861176,1581.9,1581.6,14.4297279]
[1674033981023,8.04131698,1582.0,1581.6,14.4297279]
[1674033981670,8.04131698,1582.0,1581.7,1.44297279]
[1674033982436,1.71999698,1582.0,1581.7,1.44297279]
[1674033982594,8.78759515,1582.1,1581.8,0.01785713]
[1674033982804,7.04750211,1582.1,1581.8,0.01785713]
[1674033983095,7.04750211,1582.1,1581.8,7.75663947]
[1674033983096,0.066,1582.1,1581.8,7.75663947]
[1674033983319,7.43183783,1582.1,1581.8,1.49723296]
[1674033983639,8.04075698,1582.1,1581.8,1.43482947]
[1674033983950,7.04725211,1582.1,1581.8,1.43482947]
[1674033986431,0.066,1582.1,1581.8,1.43482947]
[1674033986642,21.56141211,1582.2,1581.8,1.43482947]
[1674033986643,15.30675211,1582.2,1581.9,0.14348295]
[1674033988554,15.30675211,1582.2,1581.8,9.25410296]
[1674033990252,21.62725211,1582.2,1581.8,9.25410296]
[1674033990460,21.62725211,1582.2,1581.8,2.93223296]
[1674033990631,7.42967632,1582.1,1581.8,0.01785713]
[1674033990841,7.04730211,1582.1,1581.8,0.01785713]
[1674033991564,13.36838211,1582.1,1581.8,0.01785713]
[1674033991773,13.36838211,1582.1,1581.7,3.0]
[1674033992130,13.97948821,1582.0,1581.7,3.0]
[1674033992455,12.70865,1582.0,1581.7,3.0]
[1674033992935,13.36914211,1582.0,1581.7,3.0]
[1674033993811,6.38719,1582.0,1581.7,3.0]
[1674033993983,7.04768211,1582.0,1581.7,3.0]
[1674033994754,7.04768211,1582.0,1581.6,24.52480349]
[1674033995086,13.36914211,1582.0,1581.6,24.52480349]
[1674033996607,14.36264698,1582.0,1581.6,24.52480349]
[1674033997499,1.10936656,1581.9,1581.6,24.52480349]
[1674033998556,1.10936656,1581.9,1581.6,18.20240349]
[1674033998557,7.43087656,1581.9,1581.6,18.20240349]
[1674033998724,7.04800211,1581.9,1581.6,18.20240349]
[1674034000439,7.04800211,1581.9,1581.6,18.19867322]
[1674034000771,8.04150698,1581.9,1581.6,18.19867322]
[1674034001762,7.04800211,1581.9,1581.6,18.19867322]
[1674034003564,8.04150698,1581.9,1581.6,18.19867322]
[1674034004122,7.04800211,1581.9,1581.6,18.19867322]
[1674034004655,8.04150698,1581.9,1581.6,18.19867322]
[1674034005031,14.36301698,1581.9,1581.6,18.19867322]
[1674034005272,1.11039428,1581.8,1581.6,18.19867322]
[1674034005824,7.43236428,1581.8,1581.6,18.19867322]
[1674034006134,0.74323643,1581.7,1581.6,0.06240349]
[1674034006326,0.74323643,1581.7,1581.5,3.0]
[1674034006664,0.74323643,1581.7,1581.4,6.41919872]
[1674034006832,0.74323643,1581.7,1581.4,9.53582279]
[1674034010083,7.72613854,1581.7,1581.4,0.09602872]
[1674034010294,0.07432364,1581.6,1581.4,3.03162523]
[1674034011078,14.11467854,1581.7,1581.4,3.03162523]
[1674034011941,1.1104137,1581.6,1581.4,0.03162523]
[1674034012093,6.32311,1581.5,1581.4,0.03162523]
[1674034012305,6.38911,1581.5,1581.4,0.03162523]
[1674034012636,7.72636721,1581.5,1581.4,0.03162523]
[1674034017024,15.15974481,1581.5,1581.4,0.03162523]
[1674034017392,15.15978229,1581.5,1581.4,0.03162523]
[1674034018947,14.04947721,1581.5,1581.4,0.03162523]
[1674034019776,15.15965108,1581.5,1581.4,0.03162523]
[1674034020656,15.15965108,1581.5,1581.1,0.01793009]
[1674034020869,14.70996932,1581.5,1581.1,0.01793009]
[1674034021868,14.70996932,1581.5,1581.0,31.7778062]
[1674034022079,14.70996932,1581.5,1581.0,28.56953027]
[1674034022338,7.26649218,1581.4,1581.0,28.56953027]
[1674034022545,6.38958,1581.4,1581.0,28.56953027]
[1674034023866,12.71316,1581.4,1581.0,19.1280362]
[1674034024071,19.03674,1581.4,1581.0,19.1280362]
[1674034027550,19.69723211,1581.4,1581.0,19.1280362]
[1674034027902,19.03674,1581.4,1581.0,19.1280362]
[1674034030583,19.69723211,1581.4,1581.0,8.3963362]
[1674034031041,19.69723211,1581.4,1581.0,0.0652362]
[1674034031275,19.69723211,1581.4,1581.0,0.00083271]
[1674034031419,27.74753211,1581.4,1581.0,0.00083271]
[1674034031634,28.49572161,1581.4,1581.0,0.00083271]
[1674034032318,27.74753211,1581.4,1581.0,0.00083271]
[1674034032516,27.08704,1581.4,1581.0,0.00083271]
[1674034033074,27.74753211,1581.4,1581.0,0.00083271]
[1674034034327,27.08704,1581.4,1581.0,0.00083271]
[1674034036395,14.43988,1581.4,1581.0,0.00083271]
[1674034036623,8.1163,1581.4,1581.0,12.65093271]
[1674034036832,8.1163,1581.4,1581.0,12.7153362]
[1674034037047,14.43986,1581.4,1581.0,12.7153362]
[1674034037225,14.43986,1581.4,1581.0,6.3902262]
[1674034037434,14.43986,1581.4,1581.0,7.80936077]
[1674034043145,14.43986,1581.4,1581.1,1.0]
[1674034043313,8.1163,1581.4,1581.1,1.0]
[1674034043529,8.1163,1581.4,1581.1,15.64941]
[1674034043778,8.1163,1581.4,1581.1,15.71381349]
[1674034043996,8.1163,1581.4,1581.2,1.57138135]
[1674034044788,0.066,1581.4,1581.2,1.57138135]
[1674034044994,6.38911,1581.5,1581.2,1.57138135]
[1674034045244,6.38911,1581.5,1581.1,15.71928978]
[1674034045465,6.38911,1581.5,1581.1,9.39457978]
[1674034046943,6.3864959,1581.5,1581.1,9.39457978]
[1674034048252,7.04698801,1581.5,1581.1,9.39457978]
[1674034050778,7.04698801,1581.5,1581.1,0.06987978]
[1674034050990,1.81599135,1581.4,1581.0,7.6178362]
[1674034051255,6.32399,1581.3,1581.0,7.6178362]
[1674034051409,6.38999,1581.3,1581.0,7.6178362]
[1674034051848,0.066,1581.3,1581.0,13.9429262]
[1674034052164,28.17220091,1581.4,1581.0,13.9429262]
[1674034052373,7.89940059,1581.3,1581.1,0.34552178]
[1674034052720,7.96540059,1581.3,1581.1,0.34552178]
[1674034055854,14.9498227,1581.3,1581.1,0.34552178]
[1674034056241,21.2737527,1581.3,1581.1,0.34552178]
[1674034056487,22.02200903,1581.3,1581.1,0.34552178]
[1674034056714,13.3533188,1581.2,1581.1,0.34552178]
[1674034056870,13.4193188,1581.2,1581.1,0.34552178]
[1674034058904,19.7436288,1581.2,1581.1,0.34552178]
[1674034059116,20.85484163,1581.2,1581.1,0.34552178]
[1674034059325,19.7436288,1581.2,1581.1,0.34552178]
[1674034060717,0.7706988,1581.2,1581.1,0.34552178]
[1674034060874,6.32431,1581.2,1581.1,0.34552178]
[1674034061083,6.39031,1581.2,1581.1,0.34552178]
[1674034062208,12.71462,1581.2,1581.1,0.34552178]
[1674034062888,19.03893,1581.2,1581.1,0.34552178]
[1674034065314,21.14344171,1581.2,1581.1,0.34552178]
[1674034065646,20.4829496,1581.2,1581.1,0.34552178]
[1674034066400,21.14576739,1581.2,1581.1,0.34552178]
[1674034066961,20.4829496,1581.2,1581.1,0.34552178]
[1674034067172,21.14576843,1581.2,1581.1,0.34552178]
[1674034067383,21.1457707,1581.2,1581.1,0.34552178]
[1674034067623,21.14576898,1581.2,1581.1,0.34552178]
[1674034067837,20.4829496,1581.2,1581.1,0.34552178]
[1674034068709,25.36774196,1581.2,1581.1,0.34552178]
[1674034069142,33.66264196,1581.2,1581.1,0.34552178]
[1674034069364,31.29427422,1581.2,1581.1,0.34552178]
[1674034069593,30.1891533,1581.2,1581.1,0.34552178]
[1674034069727,28.44654851,1581.2,1581.1,0.34552178]
[1674034069932,28.44654851,1581.2,1581.1,0.34234753]
[1674034071092,27.33383,1581.2,1581.1,0.34234753]
[1674034071407,21.00952,1581.2,1581.1,0.34234753]
[1674034072787,8.3609,1581.2,1581.1,0.34234753]
[1674034073137,8.3609,1581.2,1581.1,1.64034753]
[1674034073510,8.3609,1581.2,1581.1,0.34234753]
[1674034073686,0.066,1581.2,1581.1,0.34234753]
[1674034073987,12.71415,1581.3,1581.1,0.34234753]
[1674034074306,15.03259003,1581.2,1581.1,0.34234753]
[1674034074478,21.42290003,1581.2,1581.1,0.34234753]
[1674034074835,8.77428003,1581.2,1581.1,0.34234753]
[1674034075026,6.39031,1581.2,1581.1,0.34234753]
[1674034075352,0.066,1581.2,1581.1,0.34234753]
[1674034075671,19.70094065,1581.3,1581.1,0.34234753]
[1674034075834,20.44914004,1581.3,1581.1,0.34234753]
[1674034078142,19.70094065,1581.3,1581.1,0.34234753]
[1674034079145,20.4491407,1581.3,1581.1,0.34234753]
[1674034079346,19.70094065,1581.3,1581.1,0.34234753]
[1674034084093,20.44923598,1581.3,1581.1,0.34234753]
[1674034086481,21.44317757,1581.3,1581.1,0.34234753]
[1674034088166,0.66261065,1581.2,1581.1,0.34234753]